bitfinex-derivatives/quotes_BNBF0:USTF0_20260110
["timestamp","ask_amount","ask_price","bid_price","bid_amount"]
[1768050017292,0.19329628,900.82,898.84,0.83272883]
[1768050017492,0.19329628,900.82,898.87,0.83272883]
[1768050018188,0.19329628,900.82,898.86,0.83272883]
[1768050019187,0.19329628,900.82,898.85,0.83272883]
[1768050020294,0.19329628,900.82,898.84,0.83272883]
[1768050023391,0.19329628,900.82,898.83,0.83272883]
[1768050031202,0.19329628,900.82,898.67,1.11121118]
[1768050031203,0.19329628,900.82,898.81,0.83272883]
[1768050034204,0.19329628,900.82,898.55,0.19336395]
[1768050034205,0.19329628,900.82,898.82,0.83272883]
[1768050034708,0.19329628,900.82,898.82,6.7904253]
[1768050035209,0.19329628,900.82,898.83,0.83272883]
[1768050037403,0.19329628,900.82,898.84,0.83272883]
[1768050038306,0.19329628,900.82,898.85,0.83272883]
[1768050039309,0.19329628,900.82,898.86,0.83272883]
[1768050040309,0.19329628,900.82,898.87,0.83272883]
[1768050041213,0.19329628,900.82,898.88,0.83272883]
[1768050043412,0.19329628,900.82,898.89,0.83272883]
[1768050044314,0.19329628,900.82,898.9,0.83272883]
[1768050044514,0.19329628,900.82,898.89,0.83272883]
[1768050046220,0.19329628,900.82,898.9,0.83272883]
[1768050047320,0.19329628,900.82,898.91,0.83272883]
[1768050048320,0.19329628,900.82,898.92,0.83272883]
[1768050049118,0.19329628,900.82,898.94,0.83272883]
[1768050049422,0.19329628,900.82,899.1,0.83272883]
[1768050050320,0.19329628,900.82,899.11,0.83272883]
[1768050051321,0.19329628,900.82,899.08,0.83272883]
[1768050051926,0.19329628,900.82,899.11,0.83272883]
[1768050052326,0.19329628,900.82,899.18,0.83272883]
[1768050052523,0.19329628,900.82,899.19,0.83272883]
[1768050053321,0.19329628,900.82,899.2,0.83272883]
[1768050055228,0.19329628,900.82,899.21,0.83272883]
[1768050058230,0.19329628,900.82,899.2,0.83272883]
[1768050061432,0.19329628,900.82,899.24,0.83272883]
[1768050063234,0.19329628,900.82,899.23,0.83272883]
[1768050066240,0.19329628,900.82,899.22,0.83272883]
[1768050067943,0.19329628,900.82,899.22,0.83095156]
[1768050071346,0.19329628,900.82,899.23,0.83095156]
[1768050074249,0.19329628,900.82,899.24,0.83095156]
[1768050079254,0.19329628,900.82,899.25,0.83095156]
[1768050082260,0.19329628,900.82,899.26,0.83095156]
[1768050084362,0.19329628,900.82,899.27,0.83095156]
[1768050086261,0.19329628,900.82,899.28,0.83095156]
[1768050087457,0.19329628,900.82,899.29,0.83095156]
[1768050088462,0.19329628,900.82,899.33,0.83095156]
[1768050089258,0.19329628,900.82,899.34,0.83095156]
[1768050090263,0.19329628,900.82,899.35,0.83095156]
[1768050091264,0.19329628,900.82,899.36,0.83095156]
[1768050091464,0.19329628,900.82,899.35,0.83095156]
[1768050092266,0.19329628,900.82,899.37,0.83095156]
[1768050093267,0.19329628,900.82,899.4,0.83095156]
[1768050095266,0.19329628,900.82,899.41,0.83095156]
[1768050097464,0.19329628,900.82,899.42,0.83095156]
[1768050099367,0.19329628,900.82,899.41,0.83095156]
[1768050099567,0.19329628,900.82,899.42,0.83095156]
[1768050099870,0.19329628,900.82,899.55,0.83095156]
[1768050100372,0.19329628,900.82,899.38,1.11121118]
[1768050100373,0.19329628,900.82,899.53,0.83095156]
[1768050101370,0.19329628,900.82,899.37,1.11121118]
[1768050101371,0.19329628,900.82,899.48,0.83095156]
[1768050102373,0.19329628,900.82,899.47,0.83095156]
[1768050104578,0.19329628,900.82,899.46,0.83095156]
[1768050105381,0.19329628,900.82,899.45,0.83095156]
[1768050108380,0.19329628,900.82,899.44,0.83095156]
[1768050111080,0.19329628,900.82,899.11,1.66681677]
[1768050111081,0.19329628,900.82,899.46,0.83095156]
[1768050111285,0.19329628,900.82,899.59,0.83095156]
[1768050111482,0.19329628,900.82,899.64,0.83095156]
[1768050112284,0.19329628,900.82,899.62,0.83095156]
[1768050113286,0.19329628,900.82,899.61,0.83095156]
[1768050115482,0.19329628,900.82,899.6,0.83095156]
[1768050116288,0.19329628,900.82,899.59,0.83095156]
[1768050118384,0.19329628,900.82,899.58,0.83095156]
[1768050122488,0.19329628,900.82,899.57,0.83095156]
[1768050134299,0.19329628,900.82,899.58,0.83095156]
[1768050134498,0.19329628,900.82,899.57,0.83095156]
[1768050135301,0.19329628,900.82,899.58,0.83095156]
[1768050138304,0.19329628,900.82,899.59,0.83095156]
[1768050140304,0.19329628,900.82,899.6,0.83095156]
[1768050141302,0.19329628,900.82,899.61,0.83095156]
[1768050142401,0.19329628,900.82,899.62,0.83095156]
[1768050143204,0.19329628,900.82,899.63,0.83095156]
[1768050144409,0.19329628,900.82,899.64,0.83095156]
[1768050145305,0.19329628,900.82,899.65,0.83095156]
[1768050148411,0.19329628,900.82,899.66,0.83095156]
[1768050150308,0.19329628,900.82,899.67,0.83095156]
[1768050152313,0.19329628,900.82,899.68,0.83095156]
[1768050153315,0.19329628,900.82,899.69,0.83095156]
[1768050154214,0.19329628,900.82,899.7,0.83095156]
[1768050155320,0.19329628,900.82,899.73,0.83095156]
[1768050182549,0.19329628,900.82,899.66,0.83095156]
[1768050182746,0.19329628,900.82,899.65,0.83095156]
[1768050182950,0.19329628,900.82,899.61,0.83095156]
[1768050183150,0.19329628,900.82,899.59,0.83095156]
[1768050184151,0.19329628,900.82,899.57,0.83095156]
[1768050185253,0.19329628,900.82,899.56,0.83095156]
[1768050186052,0.19329628,900.82,899.46,0.83095156]
[1768050186251,0.19329628,900.82,899.36,0.83095156]
[1768050187053,0.19329628,900.82,899.34,0.83095156]
[1768050188159,0.19329628,900.82,899.32,0.83095156]
[1768050189157,0.19329628,900.82,899.31,0.83095156]
[1768050190158,0.19329628,900.82,899.3,0.83095156]
[1768050191162,0.19329628,900.82,899.29,0.83095156]
[1768050192062,0.19329628,900.82,899.28,0.83095156]
[1768050194159,0.19329628,900.82,899.27,0.83095156]
[1768050195460,0.19329628,900.82,899.26,0.83095156]
[1768050197664,0.19329628,900.82,899.27,1.198]
[1768050198263,0.19329628,900.82,899.27,6.48948066]
[1768050204373,2.77040726,901.31,899.27,6.48948066]
[1768050204673,0.19330058,900.44,899.27,6.48948066]
[1768050204974,3.66898302,900.61,899.27,6.48948066]
[1768050205274,0.19333817,900.24,899.27,6.48948066]
[1768050210776,0.19333817,900.24,899.32,0.83095156]
[1768050211472,0.19333817,900.24,899.33,0.83095156]
[1768050214074,0.19333817,900.24,899.34,0.83095156]
[1768050215877,0.19333817,900.24,899.36,0.83095156]
[1768050217277,0.19333817,900.24,899.37,0.83095156]
[1768050218377,0.19333817,900.24,899.38,0.83095156]
[1768050220375,0.19333817,900.24,899.39,0.83095156]
[1768050221080,0.19333817,900.24,899.4,1.933]
[1768050221478,0.19333817,900.24,899.4,2.76395156]
[1768050222179,3.66898302,900.61,899.42,0.83095156]
[1768050222379,3.66898302,900.61,899.43,0.83095156]
[1768050222576,0.19331508,900.39,899.43,0.83095156]
[1768050222776,0.19331508,900.39,899.44,0.83095156]
[1768050223375,0.19331508,900.39,899.45,0.83095156]
[1768050224479,0.19331508,900.39,899.46,0.83095156]
[1768050226180,0.19331508,900.39,899.47,0.83095156]
[1768050227179,0.19331508,900.39,899.4,1.933]
[1768050227180,0.19331508,900.39,899.48,0.83095156]
[1768050228380,0.19331508,900.39,899.49,0.83095156]
[1768050236189,0.19331508,900.39,899.48,0.83095156]
[1768050238192,0.19331508,900.39,899.49,0.83095156]
[1768050243593,0.19331508,900.39,899.4,1.933]
[1768050243791,0.19331508,900.39,899.49,0.83285729]
[1768050245092,0.19331508,900.39,899.48,0.83285729]
[1768050245289,0.19331508,900.39,899.49,0.83285729]
[1768050246189,0.19331508,900.39,899.56,0.83285729]
[1768050246392,0.19331508,900.39,899.55,0.83285729]
[1768050247090,0.19331508,900.39,899.56,0.83285729]
[1768050247293,0.19331508,900.39,899.55,0.83285729]
[1768050248094,0.19331508,900.39,899.56,0.83285729]
[1768050248289,0.19331508,900.39,899.55,0.83285729]
[1768050249294,0.19331508,900.39,899.56,0.83285729]
[1768050249590,0.19331508,900.39,899.55,0.83285729]
[1768050250195,0.19331508,900.39,899.56,0.83285729]
[1768050253096,0.19331508,900.39,899.4,3.04421118]
[1768050253097,0.19331508,900.39,899.57,0.83285729]
[1768050253297,0.19331508,900.39,899.56,0.83285729]
[1768050254097,0.19331508,900.39,899.57,0.83285729]
[1768050258795,0.19331508,900.39,899.58,1.574]
[1768050258996,3.66898302,900.61,899.58,1.574]
[1768050259199,0.19330326,900.41,899.58,1.574]
[1768050260099,0.19330326,900.41,899.58,2.40685729]
[1768050260595,0.19330326,900.41,899.58,1.574]
[1768050261197,0.19330326,900.41,899.58,2.40685729]
[1768050268001,3.66898302,900.61,899.58,2.40685729]
[1768050268304,0.19330326,900.41,899.58,2.40685729]
[1768050268604,3.66898302,900.61,899.58,2.40685729]
[1768050268904,0.19330326,900.41,899.58,2.40685729]
[1768050272303,0.19330326,900.41,899.59,0.83285729]
[1768050283212,0.19330326,900.41,899.6,0.83285729]
[1768050289319,0.19330326,900.41,899.61,0.83285729]
[1768050290420,0.19330326,900.41,899.62,0.83285729]
[1768050293821,0.19330326,900.41,899.58,1.574]
[1768050310729,0.19330326,900.41,899.44,0.83285729]
[1768050315842,0.19330326,900.41,899.4,1.938]
[1768050316043,0.19330326,900.41,899.44,0.83311103]
[1768050317144,0.19330326,900.41,899.43,0.83311103]
[1768050325253,0.19330326,900.41,899.44,0.83311103]
[1768050325453,0.19330326,900.41,899.44,6.32038003]
[1768050332257,0.19330326,900.41,899.45,0.83311103]
[1768050335564,0.19330326,900.41,899.46,0.83311103]
[1768050338466,0.19330326,900.41,899.47,0.83311103]
[1768050341266,0.19330326,900.41,899.48,0.83311103]
[1768050344464,0.19330326,900.41,899.49,0.83311103]
[1768050345768,0.19330326,900.41,899.51,0.83311103]
[1768050347169,0.19330326,900.41,899.52,0.83311103]
[1768050349974,0.19330326,900.41,899.54,0.83311103]
[1768050350170,0.19330326,900.41,899.57,0.83311103]
[1768050352274,0.19330326,900.41,899.56,0.83311103]
[1768050353873,0.19330326,900.41,899.57,0.83311103]
[1768050354173,0.19330326,900.41,899.56,0.83311103]
[1768050357177,0.19330326,900.41,899.55,0.83311103]
[1768050357473,0.19330326,900.41,899.44,5.487269]
[1768050359273,0.19330326,900.41,899.55,0.83352458]
[1768050359673,0.19330326,900.41,899.44,5.487269]
[1768050360974,0.19330326,900.41,899.59,0.83347839]
[1768050362376,0.19330326,900.41,899.44,5.487269]
[1768050362377,0.19330326,900.41,899.58,0.83347839]
[1768050365175,0.19330326,900.41,899.57,0.83347839]
[1768050369486,0.19330326,900.41,899.56,0.83347839]
[1768050370782,0.19330326,900.41,899.57,2.034]
[1768050382793,0.19330326,900.41,899.59,0.83347839]
[1768050384693,0.19330326,900.41,899.61,0.83347839]
[1768050385190,0.19324262,900.56,899.62,0.83347839]
[1768050386995,0.19324262,900.56,899.63,0.83347839]
[1768050389601,0.19324262,900.56,899.7,0.83347839]
[1768050390500,0.19324262,900.56,899.7,0.83269887]
[1768050391201,0.19324262,900.56,899.69,0.83269887]
[1768050394204,0.19324262,900.56,899.68,0.83269887]
[1768050398205,0.19324262,900.56,899.67,0.83269887]
[1768050404216,0.19324262,900.56,899.66,0.83269887]
[1768050404714,0.19324262,900.56,899.67,0.83269887]
[1768050405913,0.19324262,900.56,899.66,0.83269887]
[1768050419322,0.19324262,900.56,899.67,0.83269887]
[1768050421123,0.19324262,900.56,899.71,0.83269887]
[1768050423230,0.19324262,900.56,899.72,0.83269887]
[1768050424228,0.19324262,900.56,899.73,0.83269887]
[1768050426231,0.19324262,900.56,899.74,0.83269887]
[1768050427233,0.19324262,900.56,899.75,0.83269887]
[1768050428227,0.19324262,900.56,899.76,0.83269887]
[1768050430230,0.19324262,900.56,899.77,0.83269887]
[1768050433337,0.19324262,900.56,899.78,0.83269887]
[1768050451958,0.19324262,900.56,899.79,0.83269887]
[1768050452257,0.19324262,900.56,899.79,6.41019346]
[1768050461272,0.19324262,900.56,899.8,0.83269887]
[1768050462673,0.19324262,900.56,899.79,5.57749459]
[1768050462869,0.19324262,900.56,899.8,0.83410693]
[1768050464169,0.19324262,900.56,899.81,0.83410693]
[1768050474780,0.19324262,900.56,899.74,0.83410693]
[1768050475183,0.19324262,900.56,899.72,0.83410693]
[1768050478183,0.19324262,900.56,899.71,0.83410693]
[1768050480287,0.19324262,900.56,899.69,1.522]
[1768050491788,0.19324262,900.56,899.62,0.83410693]
[1768050494596,0.19324262,900.56,899.63,1.796]
[1768050495092,0.19324262,900.56,899.64,0.83410693]
[1768050503101,0.19324262,900.56,899.66,0.83410693]
[1768050504800,0.19324262,900.56,899.68,0.83410693]
[1768050504996,0.19324262,900.56,899.73,0.83410693]
[1768050505897,0.19324262,900.56,899.74,0.83410693]
[1768050506402,0.19324262,900.56,899.58,1.11130452]
[1768050506403,0.19324262,900.56,899.76,0.83410693]
[1768050506602,0.19324262,900.56,899.78,0.83410693]
[1768050507402,0.19324262,900.56,899.79,0.83410693]
[1768050508403,0.19324262,900.56,899.78,0.83410693]
[1768050509099,0.19324262,900.56,899.79,0.83410693]
[1768050509303,0.19324262,900.56,899.78,0.83410693]
[1768050513804,2.7771789,901.64,899.78,0.83410693]
[1768050514007,0.19321043,900.66,899.78,0.83410693]
[1768050514209,2.88385544,900.93,899.78,0.83410693]
[1768050514511,0.19324852,900.66,899.78,0.83410693]
[1768050516708,0.19324852,900.66,899.62,1.387]
[1768050516709,0.19324852,900.66,899.79,0.83410693]
[1768050521311,0.19324852,900.66,899.78,0.83410693]
[1768050522215,2.7771789,901.87,899.94,0.83410693]
[1768050522512,0.19321955,900.93,899.97,0.83410693]
[1768050522712,2.98782534,901.41,899.97,0.83410693]
[1768050522909,0.19318362,900.93,899.97,0.83410693]
[1768050523309,2.98782534,901.41,899.95,0.83410693]
[1768050523512,0.19318362,900.93,899.95,0.83410693]
[1768050523716,2.98782534,901.41,899.95,0.83410693]
[1768050524014,0.19318469,900.93,899.95,0.83410693]
[1768050524213,2.98782534,901.41,899.95,0.83410693]
[1768050524416,2.98782534,901.41,899.94,0.83410693]
[1768050524716,0.19318469,900.93,899.94,0.83410693]
[1768050524918,2.98782534,901.41,899.94,0.83410693]
[1768050525217,0.19318522,901.05,899.94,0.83410693]
[1768050525418,0.19318522,901.05,899.93,0.83410693]
[1768050527218,0.19318522,901.05,899.92,0.83410693]
[1768050528217,0.19318522,901.05,899.91,0.83410693]
[1768050530322,0.19318522,901.05,899.9,0.83410693]
[1768050533325,0.19318522,901.05,899.89,0.83410693]
[1768050534026,0.19318522,901.05,899.88,0.83410693]
[1768050535826,0.19318522,901.05,899.87,0.83410693]
[1768050541222,0.19318522,901.05,899.88,0.83410693]
[1768050544425,0.19318522,901.05,899.89,0.83410693]
[1768050546330,0.19318522,901.05,899.9,0.83410693]
[1768050547332,0.19318522,901.05,899.91,0.83410693]
[1768050548633,0.19318522,901.05,899.92,1.892]
[1768050549331,0.19318522,901.05,899.92,2.72610693]
[1768050550430,0.19318522,901.05,899.93,0.83410693]
[1768050553337,0.19318522,901.05,899.94,0.83410693]
[1768050556334,0.19318522,901.05,899.95,0.83410693]
[1768050558433,0.19318522,901.05,899.96,0.83410693]
[1768050560234,0.19318522,901.05,899.97,0.83410693]
[1768050561234,0.19318522,901.05,899.98,0.83410693]
[1768050563241,0.19318522,901.05,899.99,0.83410693]
[1768050564342,0.19318522,901.05,900.0,0.83410693]
[1768050565238,0.19318522,901.05,900.02,0.83410693]
[1768050566339,0.19318522,901.05,900.04,0.83410693]
[1768050571550,0.19318522,901.05,900.06,0.83410693]
[1768050573454,0.19318522,901.05,900.12,0.83410693]
[1768050573750,0.19318522,901.05,900.13,0.83410693]
[1768050573950,0.19318522,901.05,900.18,0.83410693]
[1768050574454,0.19318522,901.05,900.16,0.83410693]
[1768050575351,0.19318522,901.05,900.15,0.83410693]
[1768050577353,0.19318522,901.05,900.14,0.83410693]
[1768050578251,0.19318522,901.05,900.13,0.83410693]
[1768050579855,0.19318522,901.05,900.12,0.83410693]
[1768050580353,0.19318522,901.05,900.11,0.83410693]
[1768050584357,0.19318522,901.05,900.1,0.83410693]
[1768050593167,0.19318522,901.05,900.11,1.51]
[1768050606282,0.19318522,901.05,900.11,2.34410693]
[1768050608980,0.19318522,901.05,900.11,1.51]
[1768050626199,0.19318522,901.05,899.74,0.83410693]
[1768050630000,0.19318522,901.05,899.75,1.679]
[1768050631098,0.19318522,901.05,899.75,6.90960849]
[1768050631701,0.19318522,901.05,899.75,7.74371542]
[1768050637398,0.19318522,901.05,899.76,0.83410693]
[1768050641404,0.19318522,901.05,899.77,0.83410693]
[1768050644406,0.19318522,901.05,899.78,0.83410693]
[1768050645006,0.19318522,901.05,899.75,6.90960849]
[1768050645007,0.19318522,901.05,899.77,0.83410693]
[1768050646209,0.19318522,901.05,899.78,0.83410693]
[1768050647308,0.19318522,901.05,899.79,0.83410693]
[1768050649408,0.19318522,901.05,899.8,0.83410693]
[1768050650304,0.19318522,901.05,899.81,0.83410693]
[1768050651104,0.19318522,901.05,899.8,0.83410693]
[1768050651406,0.19318522,901.05,899.82,0.83410693]
[1768050652307,0.19318522,901.05,899.84,0.83410693]
[1768050653310,0.19318522,901.05,899.89,0.83410693]
[1768050660521,0.19318522,901.05,899.87,0.83410693]
[1768050660820,0.19318522,901.05,899.88,0.83410693]
[1768050661020,0.19318522,901.05,899.89,0.83410693]
[1768050665326,0.19318522,901.05,899.88,0.83410693]
[1768050668523,0.19318522,901.05,899.9,0.83410693]
[1768050673528,0.19318522,901.05,899.91,2.092]
[1768050681532,0.19318522,901.05,899.95,0.83410693]
[1768050683342,0.19318522,901.05,899.94,0.83410693]
[1768050685345,0.19318522,901.05,899.93,0.83410693]
[1768050690345,0.19318522,901.05,899.92,0.83410693]
[1768050691647,0.19318522,901.05,899.91,2.092]
[1768050701757,0.19318522,901.05,899.92,0.83410693]
[1768050711362,0.19318522,901.05,899.93,0.83410693]
[1768050711664,0.19318522,901.05,899.92,0.83410693]
[1768050712365,0.19318522,901.05,899.93,0.83410693]
[1768050713663,0.19318522,901.05,899.94,1.67]
[1768050725177,2.7771789,901.71,899.94,1.67]
[1768050725471,0.19319595,900.78,899.94,1.67]
[1768050725774,3.65502329,900.99,899.94,1.67]
[1768050743795,3.65502329,900.99,899.95,0.83292159]
[1768050746398,3.65502329,900.99,899.94,2.50292159]
[1768050750299,3.65502329,900.99,899.94,1.67]
[1768050750502,3.65502329,900.99,899.94,2.50260852]
[1768050753605,3.65502329,900.99,899.99,0.83260852]
[1768050756305,3.65502329,900.99,899.98,0.83260852]
[1768050760309,3.65502329,900.99,899.97,0.83260852]
[1768050763412,3.65502329,900.99,899.98,0.83260852]
[1768050764716,3.65502329,900.99,899.99,2.323]
[1768050766316,3.65502329,900.99,899.99,3.15560852]
[1768050766517,3.65502329,900.99,899.99,2.323]
[1768050767317,3.65502329,900.99,899.99,3.15560852]
[1768050768417,3.65502329,900.99,900.0,0.83260852]
[1768050770117,3.65502329,900.99,899.99,3.15560852]
[1768050772322,3.65502329,900.99,900.0,0.83260852]
[1768050780420,3.65502329,900.99,900.01,0.83260852]
[1768050781625,3.65502329,900.99,900.02,0.83260852]
[1768050786333,3.65502329,900.99,900.03,0.83260852]
[1768050791936,3.65502329,900.99,900.04,0.83260852]
[1768050798338,3.65502329,900.99,900.05,0.83260852]
[1768050805748,3.65502329,900.99,900.06,1.584]
[1768050826266,3.65502329,900.99,900.06,2.41660852]
[1768050827771,3.65502329,900.99,900.06,0.83260852]
[1768050831072,3.65502329,900.99,900.07,2.275]
[1768050841780,3.65502329,900.99,900.15,0.83260852]
[1768050842485,3.65502329,900.99,900.13,0.83260852]
[1768050842785,3.65502329,900.99,900.22,0.83260852]
[1768050843389,3.65502329,900.99,900.2,0.83260852]
[1768050844290,3.65502329,900.99,900.19,0.83260852]
[1768050845291,3.65502329,900.99,900.18,0.83260852]
[1768050846293,3.65502329,900.99,900.17,0.83260852]
[1768050846694,0.19319488,901.27,900.17,0.83260852]
[1768050847294,0.19319488,901.27,900.16,0.83260852]
[1768050849490,0.19319488,901.27,900.15,0.83260852]
[1768050851398,0.19319488,901.27,900.14,0.83260852]
[1768050856499,0.19319488,901.27,900.13,0.83260852]
[1768050873317,0.19319488,901.27,900.14,0.83260852]
[1768050877220,0.19319488,901.27,900.15,0.83260852]
[1768050879323,0.19319488,901.27,900.16,0.83260852]
[1768050879521,0.19319488,901.27,900.12,0.83260852]
[1768050879721,0.19319488,901.27,900.07,2.275]
[1768050880217,0.19319488,901.27,899.92,0.83260852]
[1768050880916,0.19319488,901.27,899.9,0.83260852]
[1768050883221,0.19319488,901.27,899.91,2.247]
[1768050923244,0.19319488,901.27,899.91,3.07960852]
[1768050924340,0.19319488,901.27,899.94,0.83260852]
[1768050926041,2.7771789,901.68,899.94,0.83260852]
[1768050926244,0.19319112,900.94,899.94,0.83260852]
[1768050926439,3.00652415,901.05,899.94,0.83260852]
[1768050926840,0.19322491,900.78,899.94,0.83260852]
[1768050938347,0.19322491,900.78,899.95,0.83260852]
[1768050940952,0.19322491,900.78,899.91,2.247]
[1768050941148,0.19322491,900.78,899.95,0.83361766]
[1768050943457,3.00652415,901.05,900.06,0.83361766]
[1768050943752,0.19320078,901.01,900.07,0.83361766]
[1768050943955,0.19320078,901.01,900.1,0.83361766]
[1768050944452,0.19320078,901.01,899.82,4.2428618]
[1768050944453,0.19320078,901.01,900.08,0.83361766]
[1768050945254,0.19320078,901.01,900.07,0.83361766]
[1768050946356,0.19320078,901.01,900.06,0.83361766]
[1768050947453,0.19320078,901.01,900.07,2.018]
[1768050971475,0.19320078,901.01,900.02,0.83361766]
[1768050974379,0.19320078,901.01,900.03,0.83361766]
[1768050974678,0.19320078,901.01,900.04,1.698]
[1768050979279,0.19320078,901.01,900.04,2.53161766]
[1768050981286,0.19320078,901.01,900.05,0.83361766]
[1768050981782,0.19320078,901.01,900.17,0.83361766]
[1768050981986,0.19320078,901.01,900.18,0.83361766]
[1768050982483,3.00652415,901.05,900.18,0.83361766]
[1768050986284,3.00652415,901.05,900.19,0.83361766]
[1768050987286,3.00652415,901.05,900.18,0.83361766]
[1768050987485,3.00652415,901.05,900.19,0.83361766]
[1768050989087,3.00652415,901.05,900.18,0.83361766]
[1768050993089,3.00652415,901.05,900.17,0.83361766]
[1768050999295,3.00652415,901.05,900.18,0.83361766]
[1768050999500,7.48862021,902.18,900.3,0.83361766]
[1768050999698,0.19315627,901.3,900.3,0.83361766]
[1768051000101,7.48862021,902.18,900.3,0.83361766]
[1768051000304,0.19308929,901.3,900.29,0.83361766]
[1768051000504,4.71144131,902.18,900.29,0.83361766]
[1768051000799,0.19308983,901.3,900.29,0.83361766]
[1768051001202,4.71144131,902.18,900.28,0.83361766]
[1768051001400,0.19308983,901.3,900.28,0.83361766]
[1768051001605,4.71144131,902.18,900.31,0.83361766]
[1768051001800,0.19308608,901.34,900.31,0.83361766]
[1768051002102,4.71144131,902.18,900.31,0.83361766]
[1768051002401,0.19308447,901.34,900.31,0.83361766]
[1768051002604,4.71144131,902.18,900.31,0.83361766]
[1768051002902,0.19308447,901.34,900.32,0.83361766]
[1768051003106,0.19308447,901.34,900.4,0.83361766]
[1768051003407,4.71144131,902.18,900.4,0.83361766]
[1768051003901,4.71144131,902.18,900.44,0.83361766]
[1768051004206,4.71144131,902.18,900.42,0.83361766]
[1768051005103,4.71144131,902.18,900.41,0.83361766]
[1768051006310,4.71144131,902.18,900.4,0.83361766]
[1768051007210,4.71144131,902.18,900.39,0.83361766]
[1768051008109,4.71144131,902.18,900.38,0.83361766]
[1768051008814,0.19306251,901.74,900.38,0.83361766]
[1768051009108,0.19306251,901.74,900.39,0.83361766]
[1768051009813,0.19306251,901.74,900.44,0.83361766]
[1768051010010,0.19306251,901.74,900.46,0.83361766]
[1768051010209,0.19306251,901.74,900.45,0.83361766]
[1768051011214,0.19306251,901.74,900.44,0.83361766]
[1768051011410,0.19306251,901.74,900.51,0.83361766]
[1768051011914,0.19306251,901.74,900.54,0.83361766]
[1768051012111,0.19306251,901.74,900.52,0.83361766]
[1768051012310,0.19306251,901.74,900.47,0.83361766]
[1768051012514,0.19306251,901.74,900.49,0.83361766]
[1768051013313,0.19306251,901.74,900.47,0.83361766]
[1768051013612,0.19306251,901.74,900.54,0.83361766]
[1768051013917,0.19306251,901.74,900.65,0.83361766]
[1768051014118,0.19306251,901.74,900.63,0.83361766]
[1768051014318,4.71144131,902.18,900.63,0.83361766]
[1768051014517,0.19301432,901.84,900.63,0.83361766]
[1768051015114,0.19301432,901.84,900.61,0.83361766]
[1768051015917,0.19301432,901.84,900.67,0.83361766]
[1768051016214,0.19301432,901.84,900.66,0.83361766]
[1768051017218,4.71144131,902.18,900.67,0.83361766]
[1768051017413,0.19300148,901.94,900.67,0.83361766]
[1768051018012,0.19300148,901.94,900.7,0.83361766]
[1768051018213,0.19300148,901.94,900.68,0.83361766]
[1768051018613,0.19300148,901.94,900.52,1.11130452]
[1768051018614,4.71144131,902.18,900.73,0.83361766]
[1768051018914,0.19298649,902.07,900.78,0.83361766]
[1768051019213,4.71144131,902.18,900.76,0.83361766]
[1768051019416,4.71144131,902.18,900.85,0.83361766]
[1768051021217,4.71144131,902.18,900.83,0.83361766]
[1768051022428,4.71144131,902.18,900.86,0.83361766]
[1768051023424,4.71144131,902.18,900.84,0.83361766]
[1768051025229,4.71144131,902.18,900.85,0.83361766]
[1768051025430,4.71144131,902.18,900.83,0.83361766]
[1768051026425,4.71144131,902.18,900.82,0.83361766]
[1768051027530,4.71144131,902.18,900.81,0.83361766]
[1768051028128,4.71144131,902.18,900.8,0.83361766]
[1768051028327,4.71144131,902.18,900.79,0.83361766]
[1768051030435,4.71144131,902.18,900.78,0.83361766]
[1768051031433,4.71144131,902.18,900.77,0.83361766]
[1768051032232,4.71144131,902.18,900.78,0.83361766]
[1768051032436,4.71144131,902.18,900.77,0.83361766]
[1768051035334,4.71144131,902.18,900.78,0.83361766]
[1768051036340,4.71144131,902.18,900.79,0.83361766]
[1768051037438,4.71144131,902.18,900.8,1.433]
[1768051038238,4.71144131,902.18,900.8,2.26661766]
[1768051039143,4.71144131,902.18,900.81,0.83361766]
[1768051040242,4.71144131,902.18,900.82,0.83361766]
[1768051041141,4.71144131,902.18,900.83,0.83361766]
[1768051042142,4.71144131,902.18,900.85,0.83361766]
[1768051042445,4.71144131,902.18,900.86,0.83361766]
[1768051042645,4.71144131,902.18,900.8,1.433]
[1768051042646,4.71144131,902.18,900.96,0.83361766]
[1768051043243,4.71144131,902.18,900.8,1.433]
[1768051043244,4.71144131,902.18,900.97,0.83361766]
[1768051044247,4.71144131,902.18,900.99,0.83361766]
[1768051045147,4.71144131,902.18,901.0,0.83361766]
[1768051045344,3.88791076,903.9,901.04,0.83361766]
[1768051045345,2.7771789,903.6,901.04,0.83361766]
[1768051045546,2.7771789,903.6,901.13,0.83361766]
[1768051045745,0.19293193,902.42,901.13,0.83361766]
[1768051046043,3.36993803,902.71,901.13,0.83361766]
[1768051046247,3.36993803,902.71,901.14,0.83361766]
[1768051046445,0.19284907,902.42,901.14,0.83361766]
[1768051047048,0.19284907,902.42,901.16,0.83361766]
[1768051047248,0.19284907,902.42,901.15,0.83361766]
[1768051048348,0.19284907,902.42,901.16,0.83361766]
[1768051049151,0.19284907,902.42,901.17,0.83361766]
[1768051050152,0.19284907,902.42,901.19,0.83361766]
[1768051051147,0.19284907,902.42,901.2,0.83361766]
[1768051052252,0.19284907,902.42,901.22,0.83361766]
[1768051052549,0.19284907,902.42,901.21,0.83361766]